Workbook

Sheet Udgifter
B1: Budget for begivenheden [Navn på begivenhed] | H1: UDGIFTER
B3: UDGIFTER I ALT | G3: Anslået | H3: Faktisk
G4: =SUM(C11,C19,C25,C32,G11,G19,G24) -> kr. 882.00 | H4: =SUM(D11,D19,D25,D32,H11,H19,H24) -> kr. 333.00
B6: Lokalitet | C6: Anslået | D6: Faktisk | F6: Forfriskninger | G6: Anslået | H6: Faktisk
B7: Leje af lokaler | C7: kr. 500.00 | F7: Mad
B8: Personale på lokalitet | F8: Drikkevarer | G8: kr. 20.00
B9: Udstyr | F9: Linned | H9: kr. 20.00
B10: Borde og stole | F10: Personale og drikkepenge
B11: Total | C11: =SUBTOTAL(109,Tabel1[Anslået]) -> kr. 500.00 | D11: =SUBTOTAL(109,Tabel1[Faktisk]) -> kr. 0.00 | F11: Total | G11: =SUBTOTAL(109,Tabel3[Anslået]) -> kr. 20.00 | H11: =SUBTOTAL(109,Tabel3[Faktisk]) -> kr. 20.00
B13: Dekorationer | C13: Anslået | D13: Faktisk | F13: Program | G13: Anslået | H13: Faktisk
B14: Blomster | C14: kr. 200.00 | D14: kr. 300.00 | F14: Optrædende
B15: Stearinlys | F15: Talere | G15: kr. 30.00
B16: Belysning | F16: Rejse
B17: Balloner | F17: Hotel
B18: Papirvarer | F18: Andet
B19: Total | C19: =SUBTOTAL(109,Tabel4[Anslået]) -> kr. 200.00 | D19: =SUBTOTAL(109,Tabel4[Faktisk]) -> kr. 300.00 | F19: Total | G19: =SUBTOTAL(109,Tabel5[Anslået]) -> kr. 30.00 | H19: =SUBTOTAL(109,Tabel5[Faktisk]) -> kr. 0.00
B21: Reklame | C21: Anslået | D21: Faktisk | F21: Præmier | G21: Anslået | H21: Faktisk
B22: Grafikarbejder | F22: Ordensbånd/mindeplader/trofæer
B23: Fotokopiering/udskrivning | C23: kr. 20.00 | F23: Gaver | G23: kr. 100.00
B24: Porto | F24: Total | G24: =SUBTOTAL(109,Tabel7[Anslået]) -> kr. 100.00 | H24: =SUBTOTAL(109,Tabel7[Faktisk]) -> kr. 0.00
B25: Total | C25: =SUBTOTAL(109,Tabel6[Anslået]) -> kr. 20.00 | D25: =SUBTOTAL(109,Tabel6[Faktisk]) -> kr. 0.00
B27: Diverse | C27: Anslået | D27: Faktisk
B28: Telefon | D28: kr. 13.00
B29: Transport | C29: kr. 12.00
B30: Kontorartikler
B31: Faxtjenester
B32: Total | C32: =SUBTOTAL(109,Tabel8[Anslået]) -> kr. 12.00 | D32: =SUBTOTAL(109,Tabel8[Faktisk]) -> kr. 13.00

Sheet Indtægter
B1: Budget for begivenheden [Navn på begivenhed] | G1: INDTÆGTER
B3: INDTÆGTER I ALT | F3: Anslået | G3: Faktisk
F4: =SUM(F11, F18, F25, F33) -> kr. 1,936.00 | G4: =SUM(G11,G18,G25, G33) -> kr. 1,831.00
B6: ENTREINDTÆGTER
B7: Anslået antal | C7: Faktisk antal | D7: Type | E7: Pris | F7: Anslåede indtægter | G7: Faktiske indtægter
B8: 300 | C8: 278 | D8: Voksne @ | E8: kr. 5.00 | F8: =B8*E8 -> kr. 1,500.00 | G8: =C8*E8 -> kr. 1,390.00
B9: 197 | C9: 195 | D9: Børn @ | E9: kr. 2.00 | F9: =B9*E9 -> kr. 394.00 | G9: =C9*E9 -> kr. 390.00
B10: 42 | C10: 51 | D10: Andre @ | E10: kr. 1.00 | F10: =B10*E10 -> kr. 42.00 | G10: =C10*E10 -> kr. 51.00
B11: Total | F11: =SUBTOTAL(109,Tabel9[Anslåede indtægter]) -> kr. 1,936.00 | G11: =SUBTOTAL(109,Tabel9[Faktiske indtægter]) -> kr. 1,831.00
B13: ANNONCER I PROGRAMMET
B14: Anslået antal | C14: Faktisk antal | D14: Type | E14: Pris | F14: Anslåede indtægter | G14: Faktiske indtægter
B15: 12 | D15: Omslag @ | F15: =B15*E15 -> kr. 0.00 | G15: =C15*E15 -> kr. 0.00
C16: 158 | D16: Halve sider @ | F16: =B16*E16 -> kr. 0.00 | G16: =C16*E16 -> kr. 0.00
B17: 4 | D17: Kvarte sider @ | F17: =B17*E17 -> kr. 0.00 | G17: =C17*E17 -> kr. 0.00
B18: Total | F18: =SUBTOTAL(109,Tabel10[Anslåede indtægter]) -> kr. 0.00 | G18: =SUBTOTAL(109,Tabel10[Faktiske indtægter]) -> kr. 0.00
B20: UDSTILLERE/LEVERANDØRER
B21: Anslået antal | C21: Faktisk antal | D21: Type | E21: Pris | F21: Anslåede indtægter | G21: Faktiske indtægter
B22: 23 | D22: Store standpladser @ | F22: =B22*E22 -> kr. 0.00 | G22: =C22*E22 -> kr. 0.00
B23: 354 | D23: Mellem standpladser @ | F23: =B23*E23 -> kr. 0.00 | G23: =C23*E23 -> kr. 0.00
B24: 56 | D24: Små standpladser @ | F24: =B24*E24 -> kr. 0.00 | G24: =C24*E24 -> kr. 0.00
B25: Total | F25: =SUBTOTAL(109,Tabel11[Anslåede indtægter]) -> kr. 0.00 | G25: =SUBTOTAL(109,Tabel11[Faktiske indtægter]) -> kr. 0.00
B27: SALG AF VARER
B28: Anslået antal | C28: Faktisk antal | D28: Type | E28: Pris | F28: Anslåede indtægter | G28: Faktiske indtægter
D29: Varer @ | F29: =B29*E29 -> kr. 0.00 | G29: =C29*E29 -> kr. 0.00
B30: 123 | D30: Varer @ | F30: =B30*E30 -> kr. 0.00 | G30: =C30*E30 -> kr. 0.00
D31: Varer @ | F31: =B31*E31 -> kr. 0.00 | G31: =C31*E31 -> kr. 0.00
B32: 13 | D32: Varer @ | F32: =B32*E32 -> kr. 0.00 | G32: =C32*E32 -> kr. 0.00
B33: Total | F33: =SUBTOTAL(109,Tabel12[Anslåede indtægter]) -> kr. 0.00 | G33: =SUBTOTAL(109,Tabel12[Faktiske indtægter]) -> kr. 0.00

Sheet Sammendrag af indtægter og tab
B1: Budget for begivenheden [Navn på begivenhed] | G1: FORTJENESTE
G2: Oversigt over tab
C5: Anslået | D5: Faktisk
B6: Indtægt i alt | C6: =Indtægter!F4 -> kr. 1,936.00 | D6: =Indtægter!G4 -> kr. 1,831.00
B7: Udgifter i alt | C7: =Udgifter!G4 -> kr. 882.00 | D7: =Udgifter!H4 -> kr. 333.00
B9: Fortjeneste (eller tab) i alt | C9: =C6-C7 -> kr. 1,054.00 | D9: =D6-D7 -> kr. 1,498.00
